bitfinex/quotes_BTCUSD_20250623
["timestamp","ask_amount","ask_price","bid_price","bid_amount"]
[1750643081474,0.34,101060.0,101050.0,0.070994]
[1750643081652,0.63200772,101060.0,101050.0,0.070994]
[1750643082610,0.64126073,101060.0,101050.0,0.070994]
[1750643083035,0.30126073,101060.0,101050.0,0.070994]
[1750643083280,0.30127486,101060.0,101050.0,0.070994]
[1750643086236,0.30128092,101060.0,101050.0,0.070994]
[1750643089663,0.30128092,101060.0,101050.0,0.06454]
[1750643090640,0.30128524,101060.0,101050.0,0.06454]
[1750643092176,0.00927775,101060.0,101050.0,0.06454]
[1750643094616,0.33255176,101070.0,101060.0,0.06285]
[1750643094853,0.34182909,101070.0,101060.0,0.06285]
[1750643095349,0.04982137,101070.0,101060.0,0.0617]
[1750643095573,0.04982137,101070.0,101060.0,0.069235]
[1750643095802,0.04986772,101070.0,101060.0,0.069235]
[1750643096467,0.04986772,101070.0,101060.0,0.072235]
[1750643096729,0.05186772,101070.0,101060.0,0.072235]
[1750643097104,0.05186772,101070.0,101060.0,0.06585]
[1750643097333,0.04986772,101070.0,101060.0,0.06585]
[1750643097534,0.04986772,101070.0,101060.0,0.06685]
[1750643097763,0.04985707,101070.0,101060.0,0.06685]
[1750643097980,0.34186479,101070.0,101060.0,0.06685]
[1750643099969,0.34186479,101070.0,101060.0,0.08568113]
[1750643101146,0.34186479,101070.0,101060.0,0.08453113]
[1750643101371,0.34186479,101070.0,101060.0,0.0657]
[1750643102231,0.34186479,101070.0,101060.0,0.06685]
[1750643102725,0.34186479,101070.0,101060.0,0.0657]
[1750643106174,0.34186501,101070.0,101060.0,0.0657]
[1750643107697,0.34186501,101070.0,101060.0,0.09634713]
[1750643107907,0.34186501,101070.0,101060.0,0.06685]
[1750643108382,0.34186501,101070.0,101060.0,0.0657]
[1750643110106,0.34186501,101070.0,101060.0,0.06685]
[1750643110964,0.04985729,101070.0,101060.0,0.0657]
[1750643111164,0.34186501,101070.0,101060.0,0.0657]
[1750643112050,0.34186501,101070.0,101060.0,0.06685]
[1750643112487,0.34186501,101070.0,101060.0,0.09749713]
[1750643112712,0.24082657,101090.0,101070.0,0.0622]
[1750643112925,0.29200772,101080.0,101070.0,0.06335]
[1750643113137,0.31054978,101080.0,101070.0,0.06335]
[1750643114020,0.31054978,101080.0,101070.0,0.0622]
[1750643114229,0.31054978,101080.0,101070.0,0.07160471]
[1750643114659,0.3105514,101080.0,101070.0,0.07160471]
[1750643115490,0.3109514,101080.0,101070.0,0.0622]
[1750643115705,0.3105514,101080.0,101070.0,0.0632]
[1750643116993,0.29200772,101080.0,101070.0,0.0632]
[1750643118556,0.26413633,101090.0,101080.0,0.0632]
[1750643118774,0.58204693,101090.0,101080.0,0.0632]
[1750643119839,0.58404693,101090.0,101080.0,0.0632]
[1750643121714,0.58405448,101090.0,101080.0,0.0632]
[1750643123303,0.58405448,101090.0,101080.0,0.0312]
[1750643123896,0.58405448,101090.0,101070.0,0.0312]
[1750643124111,0.29200772,101080.0,101070.0,0.0625]
[1750643124553,0.31056229,101080.0,101070.0,0.0625]
[1750643124759,0.3198423,101080.0,101070.0,0.0637]
[1750643125661,0.3198423,101080.0,101070.0,0.0647]
[1750643127252,0.31984725,101080.0,101070.0,0.0647]
[1750643128365,0.61040921,101080.0,101070.0,0.0647]
[1750643129014,0.61040921,101080.0,101070.0,0.07423471]
[1750643129227,0.41511959,101080.0,101070.0,0.07423471]
[1750643130524,0.41511959,101080.0,101070.0,0.0647]
[1750643131151,0.22223939,101080.0,101070.0,0.0647]
[1750643131366,0.51352423,101080.0,101070.0,0.0647]
[1750643133179,0.29128484,101080.0,101070.0,0.0647]
[1750643133909,0.29128484,101080.0,101070.0,0.066]
[1750643136430,0.21390876,101090.0,101080.0,0.0638]
[1750643136637,0.51215384,101090.0,101080.0,0.0638]
[1750643137032,0.85215385,101090.0,101080.0,0.0638]
[1750643137649,0.69171385,101090.0,101080.0,0.0638]
[1750643137858,0.82239485,101090.0,101080.0,0.0638]
[1750643138201,0.82439485,101090.0,101080.0,0.0638]
[1750643138465,0.66395485,101090.0,101080.0,0.0638]
[1750643138682,0.82439485,101090.0,101080.0,0.0638]
[1750643138922,0.8174346,101090.0,101080.0,0.0638]
[1750643139550,1.1156805,101090.0,101080.0,0.0626]
[1750643139760,0.3404,101080.0,101070.0,0.0626]
[1750643139981,0.92993074,101080.0,101070.0,0.0626]
[1750643140628,0.34736106,101080.0,101070.0,0.0626]
[1750643140823,0.92993074,101080.0,101070.0,0.0626]
[1750643141034,0.95776835,101080.0,101070.0,0.0626]
[1750643141878,0.95776835,101080.0,101070.0,0.0636]
[1750643142290,0.95736835,101080.0,101070.0,0.0636]
[1750643142495,0.95776835,101080.0,101070.0,0.0636]
[1750643144921,0.95736835,101080.0,101070.0,0.0636]
[1750643145141,0.95736835,101080.0,101070.0,0.001]
[1750643145142,1.29125319,101080.0,101070.0,0.001]
[1750643145579,1.34476091,101080.0,101070.0,0.001]
[1750643146445,1.05373979,101080.0,101070.0,0.001]
[1750643147306,1.05371639,101080.0,101070.0,0.001]
[1750643147520,1.02997467,101080.0,101070.0,0.001]
[1750643150130,1.02997272,101080.0,101070.0,0.001]
[1750643150782,1.01373729,101080.0,101070.0,0.001]
[1750643150989,1.05368673,101080.0,101070.0,0.001]
[1750643151399,0.34,101060.0,101050.0,0.14024132]
[1750643151660,0.80112564,101060.0,101050.0,0.14024132]
[1750643152530,0.83089464,101060.0,101050.0,0.14524132]
[1750643153621,0.83089464,101060.0,101050.0,0.14724132]
[1750643157932,0.67045464,101060.0,101050.0,0.14724132]
[1750643160227,0.6611857,101060.0,101050.0,0.14724132]
[1750643160436,0.67044221,101060.0,101050.0,0.14724132]
[1750643160639,0.67084221,101060.0,101050.0,0.0681]
[1750643160862,0.67044221,101060.0,101050.0,0.0681]
[1750643161917,0.67084221,101060.0,101050.0,0.0681]
[1750643163404,0.98077117,101060.0,101050.0,0.007]
[1750643163629,0.68935447,101060.0,101050.0,0.007]
[1750643163837,0.68935447,101060.0,101050.0,0.039]
[1750643164044,0.68935447,101060.0,101050.0,0.0695]
[1750643164493,0.68935447,101060.0,101050.0,0.0655]
[1750643164710,0.68895447,101060.0,101050.0,0.0675]
[1750643164929,0.39753777,101060.0,101050.0,0.074373]
[1750643165144,0.67044221,101060.0,101050.0,0.06873]
[1750643165365,0.64067321,101060.0,101050.0,0.06873]
[1750643166907,0.6406736,101060.0,101050.0,0.06873]
[1750643168408,0.3006736,101060.0,101050.0,0.06873]
[1750643170283,0.6406736,101060.0,101050.0,0.06873]
[1750643172883,0.6406736,101060.0,101050.0,0.075603]
[1750643173534,0.6314167,101060.0,101050.0,0.075603]
[1750643174034,0.6314167,101060.0,101050.0,0.06873]
[1750643174450,0.34,101060.0,101050.0,0.06873]
[1750643175080,0.2914167,101070.0,101060.0,0.0655]
[1750643175339,0.6314167,101070.0,101060.0,0.0655]
[1750643178495,0.34,101070.0,101060.0,0.0655]
[1750643178714,0.34,101070.0,101060.0,0.08021152]
[1750643178938,0.2914167,101080.0,101070.0,0.0655]
[1750643179165,0.2914167,101080.0,101070.0,0.0667]
[1750643179389,0.6314167,101080.0,101070.0,0.0667]
[1750643179862,0.64068032,101080.0,101070.0,0.0667]
[1750643180312,0.64368032,101080.0,101070.0,0.0667]
[1750643180533,0.64367951,101080.0,101070.0,0.0667]
[1750643183472,0.64367431,101080.0,101070.0,0.0667]
[1750643184172,0.64367431,101080.0,101070.0,0.07484115]
[1750643185454,0.64367431,101080.0,101070.0,0.0667]
[1750643186559,0.6344167,101080.0,101070.0,0.0667]
[1750643188597,0.64366778,101080.0,101070.0,0.0655]
[1750643189031,0.64366779,101080.0,101070.0,0.0667]
[1750643197469,0.64366779,101080.0,101070.0,0.0655]
[1750643200207,0.64367491,101080.0,101070.0,0.0655]
[1750643202529,0.93509161,101080.0,101070.0,0.0655]
[1750643202729,0.64407491,101080.0,101070.0,0.0655]
[1750643202930,0.9837823,101080.0,101070.0,0.0655]
[1750643203134,0.6923656,101080.0,101070.0,0.0655]
[1750643203802,0.6919656,101080.0,101070.0,0.0655]
[1750643204374,0.98325706,101080.0,101070.0,0.0655]
[1750643204581,0.99020878,101080.0,101070.0,0.0655]
[1750643205733,0.95547016,101080.0,101070.0,0.0655]
[1750643205954,0.99023318,101080.0,101070.0,0.0655]
[1750643206399,0.69887714,101080.0,101070.0,0.0655]
[1750643208556,0.68033686,101080.0,101070.0,0.0655]
[1750643208822,0.69888156,101080.0,101070.0,0.0655]
[1750643210783,1.15095368,101080.0,101060.0,0.062]
[1750643211000,0.92310424,101070.0,101060.0,0.0309]
[1750643211223,0.95091861,101070.0,101060.0,0.0309]
[1750643211465,0.95091421,101070.0,101060.0,0.0309]
[1750643212525,0.95091421,101070.0,101060.0,0.0618]
[1750643212966,0.95090503,101070.0,101060.0,0.0618]
[1750643213392,0.98027103,101070.0,101060.0,0.0618]
[1750643214446,0.98025897,101070.0,101060.0,0.0618]
[1750643217087,0.97099606,101070.0,101060.0,0.0618]
[1750643217296,0.98025785,101070.0,101060.0,0.0618]
[1750643219340,0.98025728,101070.0,101060.0,0.0618]
[1750643219943,0.98025441,101070.0,101060.0,0.0618]
[1750643222642,0.98025676,101070.0,101060.0,0.0618]
[1750643224107,1.01399941,101070.0,101060.0,0.0618]
[1750643224310,0.98065676,101070.0,101060.0,0.0618]
[1750643225149,0.98025676,101070.0,101060.0,0.0618]
[1750643225378,0.97099459,101070.0,101060.0,0.0618]
[1750643225601,0.98025957,101070.0,101060.0,0.0618]
[1750643225821,0.98025964,101070.0,101060.0,0.0618]
[1750643227523,1.14053964,101070.0,101060.0,0.0618]
[1750643229329,1.14093964,101070.0,101060.0,0.0618]
[1750643229755,1.14053964,101070.0,101060.0,0.0618]
[1750643231107,1.14753613,101070.0,101060.0,0.0618]
[1750643232196,0.98725613,101070.0,101060.0,0.06298]
[1750643232378,0.98037434,101070.0,101060.0,0.06298]
[1750643233074,0.64037434,101070.0,101060.0,0.06298]
[1750643233322,0.80065434,101070.0,101060.0,0.06298]
[1750643233864,0.80065792,101070.0,101060.0,0.06298]
[1750643234165,0.80761677,101070.0,101060.0,0.06298]
[1750643235493,0.79834055,101070.0,101060.0,0.06298]
[1750643235822,0.80762225,101070.0,101060.0,0.0618]
[1750643236607,0.80763389,101070.0,101060.0,0.0618]
[1750643239474,0.80763689,101070.0,101060.0,0.0618]
[1750643239684,0.80763833,101070.0,101060.0,0.0618]
[1750643240658,1.14763833,101070.0,101060.0,0.0618]
[1750643241281,1.1476467,101070.0,101060.0,0.0618]
[1750643242014,0.0004,101060.0,101050.0,0.0326]
[1750643242225,1.05110317,101060.0,101050.0,0.0326]
[1750643242443,1.11171241,101060.0,101050.0,0.0326]
[1750643242646,0.76798263,101060.0,101050.0,0.0326]
[1750643242861,0.76798263,101060.0,101050.0,0.0629]
[1750643243066,0.76798257,101060.0,101050.0,0.0629]
[1750643243693,0.92826257,101060.0,101050.0,0.0629]
[1750643244315,0.55841988,101060.0,101050.0,0.0629]
[1750643247986,0.55840662,101060.0,101050.0,0.0629]
[1750643248623,0.55880662,101060.0,101050.0,0.0629]
[1750643249068,0.89880662,101060.0,101050.0,0.0629]
[1750643250756,0.89875003,101060.0,101050.0,0.0629]
[1750643252971,0.89874865,101060.0,101050.0,0.0629]
[1750643253454,0.89179098,101060.0,101050.0,0.0629]
[1750643253657,0.89833946,101060.0,101050.0,0.0629]
[1750643254076,0.89833946,101060.0,101050.0,0.069313]
[1750643254285,0.89833946,101060.0,101050.0,0.070543]
[1750643254506,0.89833925,101060.0,101050.0,0.06413]
[1750643256530,0.89833567,101060.0,101050.0,0.0629]
[1750643256756,0.89833435,101060.0,101050.0,0.0629]
[1750643257409,0.89873435,101060.0,101040.0,0.0632]
[1750643257612,0.6068283,101060.0,101050.0,0.0632]
[1750643257815,0.89833435,101060.0,101050.0,0.0632]
[1750643258203,0.89873435,101060.0,101050.0,0.0632]
[1750643258620,0.89833425,101060.0,101050.0,0.0632]
[1750643259026,0.88906961,101060.0,101050.0,0.0632]
[1750643259182,0.89833218,101060.0,101050.0,0.0632]
[1750643260458,0.89833176,101060.0,101050.0,0.0632]
[1750643262037,0.89832718,101060.0,101050.0,0.0632]
[1750643264480,0.55551976,101060.0,101050.0,0.0632]
[1750643264727,0.39755765,101060.0,101050.0,0.070823]
[1750643264948,0.00926262,101060.0,101050.0,0.070823]
[1750643265802,0.32127105,101070.0,101060.0,0.0629]
[1750643266025,0.32127105,101070.0,101060.0,0.06408]
[1750643266876,0.32127105,101070.0,101060.0,0.0711323]
[1750643267089,0.029765,101070.0,101060.0,0.0711323]
[1750643267301,0.32227105,101070.0,101060.0,0.0711323]
[1750643267926,0.32427105,101070.0,101060.0,0.0711323]
[1750643268353,0.32227105,101070.0,101060.0,0.0711323]
[1750643268698,0.32127105,101070.0,101060.0,0.0721323]
[1750643269021,0.32127105,101070.0,101060.0,0.0741323]
[1750643270533,0.29155241,101090.0,101080.0,0.06488]
[1750643270741,0.29155241,101090.0,101080.0,0.071368]
[1750643270742,0.65007531,101090.0,101080.0,0.071368]
[1750643271410,0.67983452,101090.0,101080.0,0.071368]
[1750643271627,0.67983452,101090.0,101080.0,0.06488]
[1750643271838,0.68183452,101090.0,101080.0,0.06488]
[1750643272044,0.37180536,101090.0,101080.0,0.06488]
[1750643272320,0.66331141,101090.0,101080.0,0.06488]
[1750643272552,0.37180536,101090.0,101080.0,0.06488]
[1750643272781,0.37280536,101090.0,101080.0,0.071368]
[1750643272989,0.66431141,101090.0,101080.0,0.071368]
[1750643273425,0.66431141,101090.0,101080.0,0.06488]
[1750643274705,0.66431141,101090.0,101080.0,0.0637]
[1750643274927,0.66431141,101090.0,101080.0,0.06488]
[1750643275564,0.66431141,101090.0,101080.0,0.0637]
[1750643277425,0.66431141,101090.0,101080.0,0.06488]
[1750643277639,0.67355849,101090.0,101080.0,0.06488]
[1750643278103,0.67355849,101090.0,101080.0,0.071368]
[1750643278535,0.67355849,101090.0,101080.0,0.06488]
[1750643278950,0.67355845,101090.0,101080.0,0.06488]
[1750643280361,0.0420524,101090.0,101080.0,0.06488]
[1750643280576,0.0122934,101090.0,101080.0,0.06488]
[1750643280787,0.00304636,101090.0,101080.0,0.06488]
[1750643280994,0.00304636,101090.0,101080.0,0.10843274]
[1750643281204,0.29455241,101090.0,101080.0,0.10843274]
[1750643281413,0.29455241,101090.0,101080.0,0.06488]
[1750643282238,0.00304636,101090.0,101080.0,0.06488]
[1750643283973,0.00104636,101090.0,101080.0,0.06488]
[1750643284329,0.29155241,101090.0,101080.0,0.06588]
[1750643284802,4.636e-05,101090.0,101080.0,0.06488]
[1750643285063,4.636e-05,101090.0,101080.0,0.06688]
[1750643285253,4.636e-05,101090.0,101080.0,0.07088]
[1750643285620,4.636e-05,101090.0,101080.0,0.09008613]
[1750643285829,4.636e-05,101090.0,101080.0,0.07088]
[1750643287264,4.636e-05,101090.0,101080.0,0.36238605]
[1750643287491,4.636e-05,101090.0,101080.0,0.07088]
[1750643289400,4.636e-05,101090.0,101080.0,0.37939998]
[1750643289617,4.636e-05,101090.0,101080.0,0.3769269]
[1750643289822,4.636e-05,101090.0,101080.0,0.44277772]
[1750643291863,4.636e-05,101090.0,101080.0,0.54307711]
[1750643292495,4.636e-05,101090.0,101080.0,0.47722629]
[1750643292694,4.636e-05,101090.0,101080.0,0.18572024]
[1750643293550,4.636e-05,101090.0,101080.0,0.47722629]
[1750643294137,4.636e-05,101090.0,101080.0,0.18572024]
[1750643294477,4.636e-05,101090.0,101080.0,0.38372085]
[1750643294651,4.636e-05,101090.0,101080.0,0.58680085]
[1750643295968,0.0092951,101090.0,101080.0,0.58680085]
[1750643296962,0.30080115,101090.0,101080.0,0.36918]
[1750643297162,0.29150605,101090.0,101080.0,0.36878]
[1750643297815,5e-05,101100.0,101080.0,0.30548]
[1750643298014,0.01854869,101100.0,101090.0,0.0633]
[1750643298224,0.3100599,101100.0,101090.0,0.0633]
[1750643298596,0.3100599,101100.0,101080.0,0.06808]
[1750643298597,0.63301694,101100.0,101080.0,0.06808]
[1750643298816,0.29150605,101090.0,101080.0,0.06608]
[1750643299026,0.31001311,101090.0,101080.0,0.06208]
[1750643299856,0.31001311,101090.0,101080.0,0.0609]
[1750643300646,0.31001311,101090.0,101080.0,0.06205]
[1750643300999,0.31001311,101090.0,101080.0,0.06405]
[1750643301355,0.31001311,101090.0,101080.0,0.0669]
[1750643301744,0.01850706,101090.0,101080.0,0.14719132]
[1750643302560,0.01850706,101090.0,101080.0,0.06805]
[1750643303286,0.029805,101100.0,101090.0,0.06215]
[1750643303510,0.04832484,101100.0,101090.0,0.06215]
[1750643304235,0.04832674,101100.0,101090.0,0.06215]
[1750643304437,0.04832674,101100.0,101090.0,0.06415]
[1750643304643,0.04832674,101100.0,101090.0,0.06515]
[1750643305313,0.04832674,101100.0,101090.0,0.10081561]
[1750643305542,0.04832674,101100.0,101090.0,0.17995693]
[1750643305773,5e-05,101100.0,101090.0,0.63617605]
[1750643306003,5e-05,101100.0,101090.0,0.63370298]
[1750643306431,5e-05,101100.0,101090.0,0.26305561]
[1750643306660,5e-05,101100.0,101090.0,0.55456166]
[1750643306872,5e-05,101100.0,101090.0,0.56910251]
[1750643307289,5e-05,101100.0,101090.0,0.27759646]
[1750643307503,5e-05,101100.0,101090.0,0.56910251]
[1750643308172,5e-05,101100.0,101090.0,0.5334369]
[1750643309752,5e-05,101100.0,101090.0,0.24193085]
[1750643310478,5e-05,101100.0,101090.0,0.5334369]
[1750643311829,0.49984974,101120.0,101110.0,0.03335]
[1750643312063,0.49984974,101120.0,101110.0,0.36255]
[1750643312273,0.53442903,101120.0,101110.0,0.36255]
[1750643312889,0.53642903,101120.0,101110.0,0.36255]
[1750643313540,0.53742903,101120.0,101110.0,0.36255]
[1750643314016,0.53742903,101120.0,101110.0,0.0631]
[1750643314243,0.53742903,101120.0,101100.0,0.0631]
[1750643314457,0.63150605,101110.0,101100.0,0.0309]
[1750643314674,0.29190605,101110.0,101090.0,0.06605]
[1750643314899,0.29150605,101100.0,101090.0,0.06605]
[1750643315588,0.29150605,101100.0,101090.0,0.0649]
[1750643315821,0.3404,101110.0,101090.0,0.0649]
[1750643316025,0.29150605,101100.0,101090.0,0.0649]
[1750643316701,0.08153929,101120.0,101100.0,0.06305]
[1750643316922,0.34,101110.0,101100.0,0.03175]
[1750643317124,0.34,101110.0,101100.0,0.07198974]
[1750643317338,0.37104534,101120.0,101110.0,0.0619]
[1750643317540,0.71104534,101120.0,101110.0,0.0619]
[1750643317740,0.67646605,101120.0,101110.0,0.0619]
[1750643317949,0.67846605,101120.0,101110.0,0.0619]
[1750643318358,0.38696,101120.0,101110.0,0.0619]
[1750643319194,0.38696,101120.0,101110.0,0.068205]
[1750643319407,0.38696,101120.0,101110.0,0.069355]
[1750643319609,0.38696,101120.0,101110.0,0.0619]
[1750643319807,0.343,101120.0,101110.0,0.0619]
[1750643319947,0.341,101120.0,101110.0,0.0619]
[1750643320156,0.343,101120.0,101110.0,0.0619]
[1750643321164,0.37651678,101120.0,101110.0,0.0619]
[1750643321367,0.343,101120.0,101110.0,0.0619]
[1750643323717,0.343,101120.0,101110.0,0.06308]
[1750643323718,0.36153678,101120.0,101110.0,0.06308]
[1750643323871,0.37080516,101120.0,101110.0,0.069388]
[1750643324272,0.37080474,101120.0,101110.0,0.069388]
[1750643324834,0.40571346,101120.0,101110.0,0.069388]
[1750643325043,0.40571168,101120.0,101110.0,0.069388]
[1750643325251,0.40371168,101120.0,101110.0,0.069388]
[1750643326279,0.40271168,101120.0,101110.0,0.069388]
[1750643326889,0.40271168,101120.0,101110.0,0.070388]
[1750643327107,0.40271168,101120.0,101110.0,0.072388]
[1750643327997,0.40271095,101120.0,101110.0,0.06608]
[1750643330797,0.37490918,101120.0,101110.0,0.06608]
[1750643331037,0.40272005,101120.0,101110.0,0.06608]
[1750643331246,0.36781087,101120.0,101110.0,0.06608]
[1750643331452,0.3678107,101120.0,101110.0,0.06608]
[1750643332718,0.4026326,101120.0,101110.0,0.06608]
[1750643333794,0.39336538,101120.0,101110.0,0.36438]
[1750643333998,0.40263712,101120.0,101110.0,0.36438]
[1750643334612,0.36781522,101120.0,101110.0,0.400818]
[1750643336775,0.02781925,101120.0,101110.0,0.102518]
[1750643336983,0.00927308,101120.0,101110.0,0.102518]
[1750643337411,0.00927308,101120.0,101110.0,0.18165932]
[1750643338279,0.00927308,101120.0,101110.0,0.19620017]
[1750643338500,0.00927308,101120.0,101110.0,0.48714901]
[1750643338931,5e-05,101130.0,101120.0,0.0631]
[1750643339147,0.00978431,101130.0,101120.0,0.37485086]
[1750643340702,0.00978431,101130.0,101120.0,0.53813086]
[1750643340922,0.00978431,101130.0,101120.0,0.24718202]
[1750643341130,0.00051394,101130.0,101120.0,0.24718202]
[1750643341789,0.00051394,101130.0,101120.0,0.55267171]
[1750643342264,0.00051394,101130.0,101120.0,0.08390202]
[1750643342485,0.00051394,101130.0,101120.0,0.2276]
[1750643344099,0.63494884,101150.0,101130.0,0.00118]
[1750643344331,0.66286211,101150.0,101140.0,0.0662]
[1750643345042,0.66286007,101150.0,101140.0,0.0662]
[1750643345509,0.66586007,101150.0,101140.0,0.0662]
[1750643345779,0.37491123,101150.0,101140.0,0.0662]
[1750643345995,0.6953128,101150.0,101140.0,0.0662]
[1750643346248,0.6963128,101150.0,101140.0,0.0662]
[1750643346486,0.6953128,101150.0,101140.0,0.0662]
[1750643346717,0.6963128,101150.0,101140.0,0.0662]
[1750643346950,0.6933128,101150.0,101140.0,0.0662]
[1750643347179,0.6963128,101150.0,101140.0,0.072938]
[1750643347411,0.69631448,101150.0,101140.0,0.0662]
[1750643347879,0.6963153,101150.0,101140.0,0.0662]
[1750643349731,0.3563153,101150.0,101130.0,0.0625]
[1750643349970,0.29094884,101140.0,101130.0,0.0625]
[1750643350190,0.30020753,101140.0,101130.0,0.0625]
[1750643350427,0.30020753,101140.0,101130.0,0.06368]
[1750643350884,0.00925869,101140.0,101130.0,0.06368]
[1750643351540,0.30020753,101140.0,101120.0,0.3608]
[1750643351758,0.31912123,101140.0,101120.0,0.36198]
[1750643351971,0.32072123,101140.0,101130.0,0.0625]
[1750643352411,0.08707066,101140.0,101130.0,0.0625]
[1750643352845,0.08807066,101140.0,101130.0,0.0625]
[1750643353059,0.08607066,101140.0,101130.0,0.0625]
[1750643353274,0.08807066,101140.0,101130.0,0.0625]
[1750643353487,0.08807066,101140.0,101130.0,0.098698]
[1750643354150,0.08807066,101140.0,101130.0,0.0625]
[1750643354357,0.08607066,101140.0,101130.0,0.0625]
[1750643354572,0.08807066,101140.0,101130.0,0.0625]
[1750643357855,0.08847066,101140.0,101120.0,0.36318]
[1750643358068,0.29094884,101130.0,101120.0,0.362]
[1750643358494,0.29434884,101140.0,101120.0,0.362]
[1750643358714,0.29434884,101140.0,101120.0,0.33036]
[1750643358934,0.002,101140.0,101130.0,0.0637]
[1750643359152,0.40333534,101150.0,101130.0,0.14284132]
[1750643359360,0.41028132,101150.0,101140.0,0.0617]
[1750643359577,0.40333534,101150.0,101140.0,0.0617]
[1750643359801,0.66453918,101150.0,101140.0,0.0617]
[1750643359989,0.66453918,101150.0,101140.0,0.0607]
[1750643360235,0.37359034,101150.0,101140.0,0.0587]
[1750643360453,0.37459034,101150.0,101140.0,0.0587]
[1750643360667,0.37459034,101150.0,101140.0,0.07260013]
[1750643360668,0.03359034,101150.0,101140.0,0.07260013]
[1750643360876,0.00713761,101150.0,101140.0,0.05986]
[1750643361309,0.29808645,101150.0,101140.0,0.0587]
[1750643361739,0.00713761,101150.0,101140.0,0.0587]
[1750643361946,0.03604032,101150.0,101140.0,0.0587]
[1750643362161,0.00713761,101150.0,101140.0,0.0587]
[1750643362355,0.00713761,101150.0,101140.0,0.35679484]
[1750643362608,0.00713761,101150.0,101140.0,0.065846]
[1750643362830,0.00713761,101150.0,101140.0,0.05986]
[1750643363262,0.00413761,101150.0,101140.0,0.05986]
[1750643363696,0.00413761,101150.0,101140.0,0.06186]
[1750643365071,0.01340205,101150.0,101140.0,0.06186]
[1750643365721,0.04327239,101150.0,101140.0,0.06186]
[1750643365952,0.01340205,101150.0,101140.0,0.06186]
[1750643367656,0.72096606,101150.0,101140.0,0.002]
[1750643368287,0.7735632,101150.0,101140.0,0.002]
[1750643370212,0.75502495,101150.0,101140.0,0.002]
[1750643370422,0.773571,101150.0,101140.0,0.002]
[1750643373134,0.77355763,101150.0,101140.0,0.002]
[1750643373373,0.79830463,101150.0,101140.0,0.002]
[1750643374032,0.80330463,101150.0,101140.0,0.002]
[1750643374926,0.75758463,101150.0,101140.0,0.002]
[1750643375168,0.96654463,101150.0,101140.0,0.002]
[1750643375388,1.00028728,101150.0,101140.0,0.002]
[1750643375589,0.96654463,101150.0,101140.0,0.002]
[1750643376023,0.96654067,101150.0,101140.0,0.002]
[1750643376865,0.96154067,101150.0,101140.0,0.002]
[1750643378879,0.96153737,101150.0,101140.0,0.002]
[1750643380977,0.96153737,101150.0,101140.0,0.0346]
[1750643381620,0.96153496,101150.0,101140.0,0.0346]
[1750643381830,0.96113496,101150.0,101140.0,0.0661]
[1750643383358,0.46122612,101150.0,101140.0,0.0661]
[1750643383599,0.61657881,101150.0,101140.0,0.06725]
[1750643383827,0.40773881,101150.0,101140.0,0.11098402]
[1750643384258,0.40773881,101150.0,101140.0,0.06725]
[1750643384482,0.40773395,101150.0,101140.0,0.06725]
[1750643384939,0.03193181,101150.0,101140.0,0.06725]
[1750643385173,0.35340234,101150.0,101140.0,0.06725]
[1750643385387,0.01340234,101150.0,101140.0,0.06725]
[1750643385611,0.35340148,101150.0,101140.0,0.06725]
[1750643390018,0.34413761,101150.0,101140.0,0.06725]
[1750643390268,0.35339693,101150.0,101140.0,0.06725]
[1750643392094,0.01339693,101150.0,101140.0,0.06725]
[1750643393239,0.01339644,101150.0,101140.0,0.06725]
[1750643393943,0.01339644,101150.0,101140.0,0.11098402]
[1750643395059,0.01339644,101150.0,101140.0,0.06725]
[1750643395952,0.01339551,101150.0,101140.0,0.06725]
[1750643398503,0.30434435,101150.0,101140.0,0.06725]
[1750643399869,0.30434435,101150.0,101140.0,0.0661]
[1750643400308,0.30434435,101150.0,101140.0,0.06725]
[1750643401222,0.01339551,101150.0,101140.0,0.06725]
[1750643404219,0.01339551,101150.0,101140.0,0.37283797]
[1750643404880,0.00413761,101150.0,101140.0,0.09642998]
[1750643405100,0.00330761,101150.0,101140.0,0.49014951]
[1750643405325,0.04892,101190.0,101160.0,0.00115]
[1750643405567,0.03166566,101190.0,101180.0,0.06375]
[1750643405790,0.04288356,101190.0,101180.0,0.39263942]
[1750643406022,0.00389901,101190.0,101180.0,0.40470957]
[1750643406283,5e-05,101200.0,101180.0,0.7773678]
[1750643406530,0.004,101230.0,101220.0,0.06375]
[1750643406794,0.004,101230.0,101220.0,0.06621957]
[1750643407030,0.004,101230.0,101200.0,0.0626]
[1750643407031,0.34676706,101230.0,101200.0,0.0626]
[1750643407246,0.63219884,101220.0,101210.0,0.0307]
[1750643407470,0.94961469,101220.0,101200.0,0.0319]
[1750643407704,0.29094884,101210.0,101200.0,0.0646]
[1750643407932,0.29094884,101210.0,101190.0,0.0649]
[1750643407933,0.00125,101200.0,101190.0,0.0649]
[1750643408167,0.30143788,101200.0,101180.0,0.0659]
[1750643408386,0.71379498,101200.0,101180.0,0.0659]
[1750643409048,0.029727,101190.0,101180.0,0.0659]
[1750643409262,0.03896604,101190.0,101180.0,0.0659]
[1750643409716,0.03896128,101190.0,101180.0,0.0659]
[1750643409931,0.03896128,101190.0,101180.0,0.0669]
[1750643410358,0.03900758,101190.0,101180.0,0.0699]
[1750643410574,0.03900758,101190.0,101180.0,0.0719]
[1750643411216,0.03900758,101190.0,101180.0,0.07305]
[1750643412399,0.03900537,101190.0,101180.0,0.07305]
[1750643413908,0.03900567,101190.0,101180.0,0.07305]
[1750643414133,0.03900567,101190.0,101180.0,0.0719]
[1750643415190,0.03900567,101190.0,101180.0,0.007]
[1750643415191,0.9452758,101190.0,101180.0,0.007]
[1750643415399,0.99737029,101190.0,101180.0,0.007]
[1750643415626,1.21864726,101190.0,101180.0,0.007]
[1750643415836,1.21864726,101190.0,101180.0,0.005]
[1750643416253,1.22064726,101190.0,101180.0,0.001]
[1750643416464,1.22264726,101190.0,101180.0,0.001]
[1750643417103,1.25166031,101190.0,101180.0,0.001]
[1750643417937,1.05401233,101190.0,101180.0,0.001]
[1750643418147,1.02630346,101190.0,101180.0,0.001]
[1750643418362,1.06390274,101190.0,101180.0,0.001]
[1750643418587,1.25166872,101190.0,101180.0,0.001]
[1750643418802,1.26306872,101190.0,101180.0,0.001]
[1750643419235,1.06542166,101190.0,101180.0,0.001]